fUST/lending_fUST_20250309
["ID","MTS","AMOUNT","RATE_DAILY","PERIOD"]
[355692408,1741464646539,-571.372276,0.00049315,120]
[355692409,1741464646548,-571.372276,0.00049315,120]
[355692410,1741464646558,-571.372276,0.00049315,120]
[355692411,1741464646567,-3101.10930609,0.0004935,2]
[355692412,1741464646576,-500.0,0.00049361,97]
[355692413,1741464646586,-203.85165619,0.00049391,30]
[355692414,1741464646595,-663.91525278,0.00049449,30]
[355692415,1741464646604,-500.0,0.00049461,93]
[355692417,1741464646613,-1278.55548535,0.00049498,19]
[355692418,1741464646623,-800.0,0.00049524,30]
[355692419,1741464646632,-800.0,0.00049558,30]
[355692420,1741464646642,-500.0,0.00049561,90]
[355692421,1741464646651,-500.0,0.00049589,120]
[355692422,1741464646660,-500.0,0.00049589,120]
[355692423,1741464646669,-500.0,0.00049589,120]
[355692424,1741464646679,-2789.42,0.00049589,7]
[355692425,1741464646688,-800.0,0.000496,30]
[355692426,1741464646698,-151.0,0.00049619,120]
[355692427,1741464646707,-800.0,0.00049625,30]
[355692428,1741464646716,-800.0,0.00049632,30]
[355692429,1741464646726,-800.0,0.00049634,30]
[355692430,1741464646736,-500.0,0.00049661,100]
[355692431,1741464646745,-162.426686,0.00049709,120]
[355692432,1741464646754,-800.0,0.00049711,30]
[355692433,1741464646763,-151.0,0.00049716,2]
[355692434,1741464646773,-1000.0,0.00049717,120]
[355692435,1741464646782,-151.0,0.00049718,30]
[355692436,1741464646791,-151.0,0.00049718,30]
[355692437,1741464646800,-151.0,0.00049718,30]
[355692438,1741464646810,-223.284132,0.00049718,30]
[355692439,1741464646820,-151.0,0.00049718,120]
[355692440,1741464646829,-151.0,0.00049718,120]
[355692441,1741464646839,-151.0,0.00049718,120]
[355692442,1741464646848,-151.0,0.00049718,120]
[355692443,1741464646857,-151.0,0.00049718,120]
[355692444,1741464646867,-151.0,0.00049718,120]
[355692445,1741464646876,-151.0,0.00049718,120]
[355692446,1741464646886,-301.738233,0.00049718,120]
[355692447,1741464646895,-151.0,0.00049718,120]
[355692448,1741464646904,-151.0,0.00049718,120]
[355692449,1741464646913,-151.0,0.00049718,120]
[355692450,1741464646923,-151.0,0.00049718,120]
[355692451,1741464646932,-151.0,0.00049718,120]
[355692452,1741464646941,-151.0,0.00049718,120]
[355692453,1741464646951,-151.0,0.00049718,120]
[355692454,1741464646960,-151.0,0.00049718,120]
[355692455,1741464646972,-151.0,0.00049718,120]
[355692456,1741464646982,-151.0,0.00049718,120]
[355692457,1741464646991,-151.0,0.00049718,120]
[355692458,1741464647000,-151.0,0.00049718,120]
[355692459,1741464647011,-151.0,0.00049718,120]
[355692460,1741464647020,-344.347921,0.00049718,120]
[355692461,1741464647030,-344.347921,0.00049718,120]
[355692462,1741464647040,-344.347921,0.00049718,120]
[355692463,1741464647053,-344.347921,0.00049718,120]
[355692464,1741464647064,-344.347921,0.00049718,120]
[355692465,1741464647074,-344.347921,0.00049718,120]
[355692466,1741464647083,-344.347921,0.00049718,120]
[355692467,1741464647094,-344.347921,0.00049718,120]
[355692468,1741464647104,-544.600908,0.00049718,7]
[355692469,1741464647114,-544.600908,0.00049718,7]
[355692470,1741464647124,-544.600908,0.00049718,7]
[355692471,1741464647134,-544.600908,0.00049718,7]
[355692472,1741464647144,-544.600908,0.00049718,7]
[355692473,1741464647153,-544.600908,0.00049718,7]
[355692474,1741464647162,-544.600908,0.00049718,7]
[355692475,1741464647172,-544.600908,0.00049718,7]
[355692476,1741464647182,-544.600908,0.00049718,7]
[355692477,1741464647191,-544.600908,0.00049718,7]
[355692478,1741464647202,-151.0,0.00049718,120]
[355692479,1741464647211,-151.0,0.00049718,120]
[355692480,1741464647221,-151.0,0.00049718,120]
[355692481,1741464647230,-151.0,0.00049718,120]
[355692482,1741464647239,-386.868074,0.00049718,120]
[355692483,1741464647249,-386.868074,0.00049718,120]
[355692484,1741464647258,-386.868074,0.00049718,120]
[355692485,1741464647267,-386.868074,0.00049718,120]
[355692486,1741464647277,-386.868074,0.00049718,120]
[355692487,1741464647286,-386.868074,0.00049718,120]
[355692488,1741464647295,-386.868074,0.00049718,120]
[355692489,1741464647305,-386.868074,0.00049718,120]
[355692490,1741464647315,-154.388848,0.00049718,120]
[355692491,1741464647324,-571.372276,0.00049718,120]
[355692492,1741464647334,-571.372276,0.00049718,120]
[355692493,1741464647343,-571.372276,0.00049718,120]
[355692494,1741464647353,-571.372276,0.00049718,120]
[355692495,1741464647362,-571.372276,0.00049718,120]
[355692496,1741464647372,-571.372276,0.00049718,120]
[355692497,1741464647381,-571.372276,0.00049718,120]
[355692498,1741464647390,-571.372276,0.00049718,120]
[355692499,1741464647400,-571.372276,0.00049718,120]
[355692500,1741464647409,-571.372276,0.00049718,120]
[355692501,1741464647419,-151.0,0.00049718,120]
[355692502,1741464647428,-151.0,0.00049718,120]
[355692503,1741464647437,-184.456459,0.00049718,120]
[355692504,1741464647447,-184.456459,0.00049718,120]
[355692505,1741464647457,-151.0,0.00049718,120]
[355692506,1741464647466,-214.70488,0.00049718,120]
[355692507,1741464647475,-214.70488,0.00049718,120]
[355692508,1741464647485,-275.480132,0.00049718,120]
[355692509,1741464647494,-518.860443,0.00049718,120]
[355692510,1741464647503,-518.860443,0.00049718,120]
[355692511,1741464647514,-500.0,0.00049719,30]
[355692512,1741464647524,-24797.5982521,0.00049719,120]
[355692513,1741464647534,-500.0,0.00049719,2]
[355692514,1741464647544,-154.147119,0.00049719,120]
[355692515,1741464647553,-154.147119,0.00049719,120]
[355692516,1741464647562,-151.0,0.00049719,120]
[355692517,1741464647572,-151.0,0.00049719,120]
[355692518,1741464647581,-151.0,0.00049719,120]
[355692519,1741464647590,-150.45,0.00049719,30]
[355692520,1741464647600,-500.0,0.00049719,30]
[355692521,1741464647610,-151.0,0.0004972,120]
[355692522,1741464647619,-151.0,0.0004973,120]
[355692523,1741464647629,-151.0,0.0004973,120]
[355692524,1741464647638,-151.0,0.0004973,120]
[355692525,1741464647648,-151.0,0.0004973,120]
[355692526,1741464647657,-151.0,0.0004973,120]
[355692527,1741464647667,-151.0,0.0004973,120]
[355692528,1741464647676,-184.456459,0.0004973,120]
[355692529,1741464647685,-184.456459,0.0004973,120]
[355692530,1741464647694,-184.456459,0.0004973,120]
[355692531,1741464647703,-184.456459,0.0004973,120]
[355692532,1741464647713,-184.456459,0.0004973,120]
[355692533,1741464647722,-184.456459,0.0004973,120]
[355692534,1741464647731,-184.456459,0.0004973,120]
[355692535,1741464647741,-184.456459,0.0004973,120]
[355692536,1741464647750,-184.456459,0.0004973,120]
[355692537,1741464647760,-184.456459,0.0004973,120]
[355692538,1741464647773,-151.0,0.0004973,120]
[355692539,1741464647782,-151.0,0.0004973,120]
[355692540,1741464647791,-151.0,0.0004973,120]
[355692541,1741464647800,-151.0,0.0004973,120]
[355692542,1741464647810,-264.858556,0.0004973,120]
[355692543,1741464647821,-214.70488,0.0004973,120]
[355692544,1741464647830,-214.70488,0.0004973,120]
[355692545,1741464647840,-214.70488,0.0004973,120]
[355692546,1741464647849,-214.70488,0.0004973,120]
[355692547,1741464647859,-214.70488,0.0004973,120]
[355692548,1741464647868,-214.70488,0.0004973,120]
[355692549,1741464647878,-214.70488,0.0004973,120]
[355692550,1741464647887,-214.70488,0.0004973,120]
[355692551,1741464647897,-214.70488,0.0004973,120]
[355692552,1741464647907,-214.70488,0.0004973,120]
[355692553,1741464647916,-154.147119,0.0004973,120]
[355692554,1741464647925,-154.147119,0.0004973,120]
[355692555,1741464647935,-154.147119,0.0004973,120]
[355692556,1741464647944,-154.147119,0.0004973,120]
[355692557,1741464647953,-154.147119,0.0004973,120]
[355692558,1741464647966,-154.147119,0.0004973,120]
[355692559,1741464647977,-154.147119,0.0004973,120]
[355692560,1741464647986,-154.147119,0.0004973,120]
[355692561,1741464647996,-154.147119,0.0004973,120]
[355692562,1741464648006,-154.147119,0.0004973,120]
[355692563,1741464648017,-151.0,0.0004973,120]
[355692564,1741464648026,-151.0,0.0004973,120]
[355692565,1741464648036,-151.0,0.0004973,120]
[355692566,1741464648046,-151.0,0.0004973,120]
[355692567,1741464648056,-151.0,0.0004973,120]
[355692568,1741464648066,-151.0,0.0004973,120]
[355692569,1741464648076,-151.0,0.0004973,120]
[355692570,1741464648086,-151.0,0.0004973,120]
[355692571,1741464648096,-151.525963,0.0004973,120]
[355692572,1741464648106,-151.0,0.0004973,120]
[355692573,1741464648115,-518.860443,0.0004973,120]
[355692574,1741464648124,-518.860443,0.0004973,120]
[355692575,1741464648134,-518.860443,0.0004973,120]
[355692576,1741464648143,-518.860443,0.0004973,120]
[355692577,1741464648153,-518.860443,0.0004973,120]
[355692578,1741464648162,-518.860443,0.0004973,120]
[355692579,1741464648267,-518.860443,0.0004973,120]
[355692580,1741464648278,-518.860443,0.0004973,120]
[355692581,1741464648289,-518.860443,0.0004973,120]
[355692582,1741464648299,-518.860443,0.0004973,120]
[355692583,1741464648309,-10561.7422821,0.0004973,30]
[355692584,1741464648320,-1089.0,0.0004973,30]
[355692585,1741464648330,-407.45196443,0.0004973,2]
[355692586,1741464648340,-21333.9,0.0004973,90]
[355692587,1741464648350,-100552.02698855,0.0004973,120]
[355692588,1741464648361,-323290.33792714,0.0004973,7]
[355692589,1741464648371,-991.75636487,0.0004973,120]
[355692590,1741464648381,-439.27713478,0.0004973,120]
[355692591,1741464648391,-1729.85786529,0.0004973,120]
[355692592,1741464648401,-696.0967562,0.0004973,120]
[355692593,1741464648411,-660.77233895,0.0004973,120]
[355692594,1741464648421,-419.89316606,0.0004973,120]
[355692595,1741464648431,-212.53372124,0.0004973,120]
[355692596,1741464648441,-312.01766011,0.0004973,120]
[355692597,1741464648451,-200.57096286,0.0004973,120]
[355692598,1741464648460,-2000.0,0.0004973,60]
[355692599,1741464648470,-9353.96601874,0.0004973,2]
[355692600,1741464648480,-940.36451581,0.0004973,120]
[355692601,1741464648490,-198.02447066,0.0004973,7]
[355692602,1741464648499,-2121.78486254,0.0004973,120]
[355692603,1741464648508,-150.0,0.0004973,2]
[355692604,1741464648519,-4855.61571606,0.0004973,35]
[355692605,1741464648528,-2500.0,0.0004973,38]
[355692606,1741464648538,-2500.0,0.0004973,43]
[355692607,1741464648548,-1816.0,0.0004973,120]
[355692608,1741464648557,-170616.2395588,0.0004973,7]
[355692609,1741464648568,-901.58003675,0.0004973,120]
[355692610,1741464648578,-2132.16038108,0.0004973,30]
[355692611,1741464648587,-160.36042531,0.0004973,30]
[355692612,1741464648597,-228.48909893,0.0004973,120]
[355692613,1741464648606,-1865.34493149,0.0004973,120]
[355692614,1741464648616,-677.55844948,0.0004973,120]
[355692615,1741464648625,-240.82074905,0.0004973,120]
[355692616,1741464648635,-1915.90777362,0.0004973,60]
[355692617,1741464648644,-3746.50053861,0.0004973,2]
[355692618,1741464648655,-3013.93331575,0.0004973,2]
[355692619,1741464648665,-1189.41883163,0.0004973,120]
[355692620,1741464648675,-152.07531587,0.0004973,30]
[355692621,1741464648685,-932.5948282,0.0004973,120]
[355692622,1741464648695,-1969.33405847,0.0004973,120]
[355692623,1741464648704,-1776.71222382,0.0004973,120]
[355692624,1741464648714,-325.55774406,0.0004973,30]
[355692625,1741464648724,-853.08636175,0.0004973,120]
[355692626,1741464648733,-935.1242999,0.0004973,120]
[355692627,1741464648743,-1589.67841151,0.0004973,120]
[355692628,1741464648752,-1036.50202188,0.0004973,120]
[355692629,1741464648762,-2538.51592148,0.0004973,120]
[355692630,1741464648771,-200.0,0.0004973,10]
[355692631,1741464648781,-342.60784007,0.0004973,120]
[355692632,1741464648791,-90543.67714318,0.0004973,20]
[355692633,1741464648800,-1683.97624533,0.0004973,120]
[355692634,1741464648809,-191949.33642808,0.0004973,120]
[355692635,1741464648818,-227.13839955,0.0004973,120]
[355692636,1741464648828,-1000.0,0.0004973,120]
[355692637,1741464648838,-1423.68423973,0.0004973,120]
[355692638,1741464648851,-5596.61487014,0.0004973,2]
[355692639,1741464648861,-1800.0,0.0004973,2]
[355692640,1741464648870,-16364.58101076,0.0004973,120]
[355692641,1741464648880,-206.51369908,0.0004973,2]
[355692642,1741464648890,-5000.0,0.0004973,120]
[355692643,1741464648900,-500.0,0.0004973,30]
[355692644,1741464648909,-31061.94581743,0.0004973,7]
[355692645,1741464648919,-500.0,0.00049746,2]
[355692646,1741464648929,-150.45,0.00049746,30]
[355692647,1741464648938,-500.0,0.00049746,30]
[355692648,1741464648949,-150.0,0.00049749,30]
[355692649,1741464648958,-500.0,0.00049761,91]
[355692650,1741464648969,-150.0,0.00049773,10]
[355692651,1741464648980,-500.0,0.00049774,2]
[355692652,1741464648990,-150.45,0.00049774,30]
[355692653,1741464649000,-500.0,0.00049774,30]
[355692654,1741464649011,-2500.0,0.000498,55]
[355692655,1741464649020,-20000.0,0.000498,30]
[355692656,1741464649029,-442.58,0.000498,30]
[355692657,1741464649039,-349.28,0.000498,30]
[355692658,1741464649051,-151.0,0.000498,120]
[355692659,1741464649061,-544.600908,0.000498,7]
[355692660,1741464649072,-544.600908,0.000498,7]
[355692661,1741464649082,-571.372276,0.000498,120]
[355692662,1741464649091,-571.372276,0.000498,120]
[355692663,1741464649102,-500.0,0.00049801,2]
[355692664,1741464649112,-150.45,0.00049801,30]
[355692665,1741464649122,-500.0,0.00049801,30]
[355692666,1741464649133,-500.0,0.00049829,2]
[355692667,1741464649142,-156.09279457,0.00049829,30]
[355692668,1741464649151,-500.0,0.00049829,30]
[355692669,1741464649160,-156.612443,0.00049831,120]
[355692670,1741464649170,-173.134434,0.00049831,120]
[355692671,1741464649180,-2500.0,0.00049838,71]
[355692672,1741464649191,-500.0,0.00049856,2]
[355692673,1741464649201,-686.31979919,0.00049856,30]
[355692674,1741464649211,-200.0,0.0004986,120]
[355692675,1741464649221,-500.0,0.00049861,92]
[355692676,1741464649230,-151.0,0.00049863,120]
[355692677,1741464649239,-380.58983615,0.00049863,120]
[355692678,1741464649249,-500.0,0.00049863,120]
[355692679,1741464649260,-500.0,0.00049863,120]
[355692680,1741464649269,-2789.42,0.00049863,7]
[355692681,1741464649278,-500.0,0.00049883,2]
[355692682,1741464649288,-213.08095415,0.000499,14]
[355692683,1741464649297,-166.54534897,0.000499,120]
[355692684,1741464649308,-1233.70680449,0.000499,2]
[355692685,1741464649317,-500.0,0.00049904,30]
[355692686,1741464649327,-2000.0,0.00049908,4]
[355692687,1741464649337,-500.0,0.00049911,2]
[355692688,1741464649346,-999.0,0.00049923,120]
[355692689,1741464649357,-500.0,0.00049938,2]
[355692690,1741464649366,-2000.0,0.00049939,4]
[355692691,1741464649376,-151.0,0.00049939,120]
[355692692,1741464649386,-151.0,0.00049941,120]
[355692693,1741464649395,-151.0,0.00049941,120]
[355692694,1741464649404,-344.347921,0.00049941,120]
[355692695,1741464649414,-344.347921,0.00049941,120]
[355692696,1741464649423,-386.868074,0.00049941,120]
[355692697,1741464649433,-386.868074,0.00049941,120]
[355692698,1741464649442,-500.0,0.00049961,90]
[355692699,1741464649451,-151.0,0.00049961,120]
[355692700,1741464649460,-184.456459,0.00049961,120]
[355692701,1741464649469,-184.456459,0.00049961,120]
[355692702,1741464649479,-214.70488,0.00049961,120]
[355692703,1741464649488,-214.70488,0.00049961,120]
[355692704,1741464649497,-518.860443,0.00049961,120]
[355692705,1741464649506,-518.86044147,0.00049961,120]
[355692706,1741464649515,-154.147119,0.00049965,120]
[355692707,1741464649525,-154.147119,0.00049965,120]
[355692708,1741464649534,-151.0,0.00049965,120]
[355692709,1741464649544,-500.0,0.00049966,2]
[355692710,1741464649553,-2000.0,0.00049969,4]
[355692711,1741464649563,-150.0,0.00049973,10]
[355692712,1741464649573,-500.0,0.00049993,2]
[355692713,1741464649583,-4919.0,0.00049999,120]
[355692714,1741464649592,-357.18399966,0.00049999,31]
[355692715,1741464649602,-211.79919856,0.00049999,120]
[355692716,1741464649611,-445.97594415,0.00049999,120]
[355692717,1741464649621,-356.49323618,0.00049999,31]
[355692718,1741464649630,-495.60521991,0.00049999,120]
[355692719,1741464649640,-215.06064765,0.00049999,120]
[355692720,1741464649649,-500.0,0.00049999,2]
[355692721,1741464649659,-501.02423607,0.00049999,31]
[355692722,1741464649668,-288.37357012,0.00049999,2]
[355692723,1741464649678,-501.02423607,0.00049999,31]
[355692724,1741464649687,-501.02423607,0.00049999,31]
[355692725,1741464649697,-501.02423607,0.00049999,31]
[355692726,1741464649706,-501.02423607,0.00049999,31]
[355692727,1741464649716,-501.02423607,0.00049999,31]
[355692728,1741464649725,-501.02423607,0.00049999,31]
[355692729,1741464649735,-567.82746755,0.00049999,31]
[355692730,1741464649745,-567.82746755,0.00049999,31]
[355692731,1741464649754,-567.82746755,0.00049999,31]
[355692732,1741464649763,-215.72993789,0.0005,20]
[355692733,1741464649773,-525.22190319,0.0005,10]
[355692734,1741464649782,-534.77735342,0.0005,120]
[355692735,1741464649792,-2528934.36039475,0.0005,2]
[355692736,1741464649801,-150.0,0.0005,2]
[355692737,1741464649810,-10000.0,0.0005,60]
[355692738,1741464649820,-1005.43896083,0.0005,10]
[355692739,1741464649829,-3678.0,0.0005,120]
[355692740,1741464649839,-835.0,0.0005,120]
[355692741,1741464649849,-173.0,0.0005,120]
[355692742,1741464649858,-166.0,0.0005,120]
[355692743,1741464649867,-162.0,0.0005,120]
[355692744,1741464649876,-185.0,0.0005,120]
[355692745,1741464649886,-594.0,0.0005,120]
[355692746,1741464649900,-2982123.43822573,0.0005,120]
[355692747,1741464649909,-151.0,0.0005,120]
[355692748,1741464649919,-151.0,0.0005,120]
[355692749,1741464649928,-21323.98521214,0.0005,15]
[355692750,1741464649938,-171.0,0.0005,120]
[355692751,1741464649947,-151.0,0.0005,120]
[355692752,1741464649957,-151.0,0.0005,120]
[355692753,1741464649970,-163.769733,0.0005,120]
[355692754,1741464649980,-190.237658,0.0005,120]
[355692755,1741464649989,-155.433865,0.0005,120]
[355692756,1741464649998,-344.347921,0.0005,120]
[355692757,1741464650009,-344.347921,0.0005,120]
[355692758,1741464650018,-344.347921,0.0005,120]
[355692759,1741464650027,-344.347923,0.0005,120]
[355692760,1741464650037,-544.600908,0.0005,7]
[355692761,1741464650048,-544.600908,0.0005,7]
[355692762,1741464650058,-544.600908,0.0005,7]
[355692763,1741464650067,-544.600901,0.0005,7]
[355692764,1741464650077,-386.868074,0.0005,120]
[355692765,1741464650086,-386.868074,0.0005,120]
[355692766,1741464650095,-386.868074,0.0005,120]
[355692767,1741464650105,-386.868074,0.0005,120]
[355692768,1741464650114,-571.372276,0.0005,120]
[355692769,1741464650123,-571.372276,0.0005,120]
[355692770,1741464650133,-571.372276,0.0005,120]
[355692771,1741464650142,-571.37228457,0.0005,120]
[355692772,1741464650152,-151.0,0.0005,120]
[355692773,1741464650162,-184.456459,0.0005,120]
[355692774,1741464650171,-184.456467,0.0005,120]
[355692775,1741464650181,-214.70488,0.0005,120]
[355692776,1741464650191,-214.704877,0.0005,120]
[355692777,1741464650200,-154.147119,0.0005,120]
[355692778,1741464650209,-154.147124,0.0005,120]
[355692779,1741464650218,-151.0,0.0005,120]
[355692780,1741464650228,-500.0,0.0005002,2]
[355692781,1741464650237,-500.0,0.00050048,2]
[355692782,1741464650248,-500.0,0.00050061,97]
[355692783,1741464650258,-500.0,0.00050075,2]
[355692784,1741464650288,-500.0,0.00050103,2]
[355692785,1741464650297,-500.0,0.0005013,2]
[355692786,1741464650307,-500.0,0.00050136,120]
[355692787,1741464650317,-500.0,0.00050136,120]
[355692788,1741464650326,-2789.42,0.00050136,7]
[355692789,1741464650335,-2469.35114716,0.00050147,28]
[355692790,1741464650345,-500.0,0.00050157,2]
[355692791,1741464650355,-500.0,0.00050161,97]
[355692792,1741464650370,-500.0,0.00050185,2]
[355692793,1741464650379,-200.0,0.00050199,120]
[355692794,1741464650389,-762.19659391,0.00050212,2]
[355692795,1741464650398,-351.745242,0.00050243,2]
[355692796,1741464650408,-500.0,0.00050261,96]
[355692797,1741464650417,-250.0,0.00050321,10]
[355692798,1741464650426,-500.0,0.00050361,97]
[355692799,1741464650435,-500.0,0.0005041,120]
[355692800,1741464650445,-353.17024501,0.0005041,120]
[355692801,1741464650454,-2789.42,0.0005041,7]
[355692802,1741464650463,-500.0,0.00050461,97]
[355692803,1741464650472,-500.0,0.00050492,60]
[355692804,1741464650481,-250.0,0.00050521,10]
[355692805,1741464650490,-500.0,0.00050561,93]
[355692806,1741464650499,-500.0,0.00050661,98]
[355692807,1741464650509,-500.0,0.00050684,120]
[355692808,1741464650518,-2789.42,0.00050684,7]
[355692809,1741464650528,-153.78,0.000507,48]
[355692810,1741464650537,-153.78,0.000507,48]
[355692811,1741464650546,-999.0,0.00050745,120]
[355692812,1741464650555,-500.0,0.00050761,93]
[355692813,1741464650564,-500.0,0.00050861,100]
[355692814,1741464650574,-350.0,0.00050868,10]
[355692815,1741464650583,-263.108796,0.00050958,120]
[355692816,1741464650592,-2789.42,0.00050958,7]
[355692817,1741464650602,-500.0,0.00050961,98]
[355692818,1741464650611,-1000.0,0.00051,120]
[355692819,1741464650621,-191.81075621,0.00051037,2]
[355692820,1741464650630,-500.0,0.00051061,95]
[355692821,1741464650639,-350.0,0.00051068,10]
[355692822,1741464650648,-150.0,0.00051118,30]
[355692823,1741464650657,-842.81,0.00051161,95]
[355692824,1741464650667,-351.745242,0.00051179,2]
[355692825,1741464650676,-2789.42,0.00051232,7]
[355692826,1741464650685,-500.0,0.0005126,60]
[355692827,1741464650694,-450.0,0.00051416,10]
[355692828,1741464650703,-442.58,0.000515,30]
[355692829,1741464650713,-349.28,0.000515,30]
[355692830,1741464650722,-2789.42,0.00051506,7]
[355692831,1741464650732,-170.0,0.000516,120]
[355692832,1741464650741,-463.84532649,0.00051616,10]
[355692833,1741464650750,-200.0,0.00051757,120]
[355692834,1741464650759,-2789.42,0.0005178,7]
[355692835,1741464650768,-250.0,0.00051812,10]
[355692836,1741464650777,-550.0,0.00051964,10]
[355692837,1741464650786,-1000.0,0.00052,120]
[355692838,1741464650796,-1100.0,0.00052,120]
[355692839,1741464650805,-3831.724,0.00052,120]
[355692840,1741464650814,-20000.0,0.00052,30]
[355692841,1741464650824,-3678.0,0.00052,120]
[355692842,1741464650833,-835.0,0.00052,120]
[355692843,1741464650842,-151.0,0.00052,120]
[355692844,1741464650851,-594.0,0.00052,120]
[355692845,1741464650861,-2789.42,0.00052054,7]
[355692846,1741464650870,-351.745242,0.00052116,2]
[355692847,1741464650879,-500.0,0.00052205,30]
[355692848,1741464650889,-500.0,0.00052247,60]
[355692849,1741464650898,-2789.42,0.00052328,7]
[355692850,1741464650907,-2469.35114716,0.00052335,28]
[355692851,1741464650917,-150.0,0.00052488,30]
[355692852,1741464650927,-650.0,0.00052512,10]
[355692853,1741464650936,-1000.0,0.00052546,10]
[355692854,1741464650945,-651.36426997,0.000526,30]
[355692855,1741464650955,-2789.42,0.00052602,7]
[355692856,1741464650965,-500.0,0.00052652,60]
[355692857,1741464650977,-2789.6528,0.00052876,7]
[355692858,1741464650987,-1000.0,0.00053,120]
[355692859,1741464650997,-153.78,0.00053,51]
[355692860,1741464651007,-153.78,0.00053,51]
[355692861,1741464651018,-200.0,0.00053036,120]
[355692862,1741464651027,-351.745242,0.00053052,2]
[355692863,1741464651036,-805.71369783,0.0005306,10]
[355692864,1741464651046,-4025.90635037,0.0005308,120]
[355692865,1741464651057,-160.0,0.00053203,3]
[355692866,1741464651067,-200.0,0.00053371,120]
[355692867,1741464651076,-182.0,0.000534,120]
[355692868,1741464651086,-166.0,0.000534,120]
[355692869,1741464651095,-159.0,0.000534,120]
[355692870,1741464651105,-170.0,0.000534,120]
[355692871,1741464651115,-386.868074,0.00053642,120]
[355692872,1741464651124,-386.868076,0.00053642,120]
[355692873,1741464651134,-500.0,0.00053769,60]
[355692874,1741464651145,-612.17089826,0.00053852,10]
[355692875,1741464651161,-150.0,0.00053858,30]
[355692876,1741464651172,-151.0,0.00053952,120]
[355692877,1741464651182,-500.0,0.00053952,10]
[355692878,1741464651193,-250.83038847,0.00053952,10]
[355692879,1741464651205,-1000.0,0.00053952,10]
[355692880,1741464651215,-1000.0,0.00053952,10]
[355692881,1741464651226,-1000.0,0.00053952,10]
[355692882,1741464651236,-1000.0,0.00053952,10]
[355692883,1741464651247,-404.36230799,0.00053973,10]
[355692884,1741464651258,-351.745242,0.00053988,2]
[355692885,1741464651268,-6414.16144745,0.00054,120]
[355692886,1741464651278,-3678.0,0.00054,120]
[355692887,1741464651287,-835.0,0.00054,120]
[355692888,1741464651297,-283602.39266921,0.00054,120]
[355692889,1741464651320,-202035.56237776,0.00054,120]
[355692900,1741465631124,-162.450583,0.0003589,2]
[355692901,1741465631147,-380.0,0.00041865,120]
[355692902,1741465631169,-1075.80518184,0.000419,9]
[355692903,1741465631190,-214.9742646,0.00042203,2]
[355692904,1741465631212,-159.55810517,0.00043476,2]
[355692905,1741465644118,-748.10191629,0.00043476,2]
[355692906,1741465650092,-388.2461735,0.00043476,2]
[355692907,1741465654079,-36.36231193,0.00043476,2]
[355692908,1741465654101,-184.3200936,0.00043576,2]
[355692909,1741465654123,-550.0,0.00043835,5]
[355692910,1741465654146,-686.37203114,0.00043836,10]
[355692911,1741465679992,5495.30590183,0.0002035,2]
[355692912,1741465700858,264.87562882,0.00021,2]
[355692913,1741465703723,2045.70551769,0.000176,2]
[355692914,1741465711642,21262.32178121,0.0001711,2]
[355692915,1741465712834,238.73344461,0.00021,2]
[355692916,1741465712947,10398.99144647,0.00021,2]
[355692917,1741465714712,150.99999833,0.00023,2]
[355692918,1741465716551,355.76718693,0.0002,2]